[Event "Late-Titled-Tuesday-Blitz-April-02-2024"]
[Site "Chess.com"]
[Date "2024.04.02"]
[Round "4"]
[White "bescmelasti"]
[Black "Heliosis11"]
[Result "0-1"]
[WhiteElo "2614"]
[BlackElo "2409"]
[TimeControl "180+1"]
[EndTime "14:36:40 PDT"]
[Termination "Heliosis11 won by resignation"]

1. e4 {[%clk 0:01:32.4]} 1... c5 {[%clk 0:02:58.2]} 2. Nf3 {[%clk 0:01:30.5]}
2... e6 {[%clk 0:02:58.7]} 3. d4 {[%clk 0:01:29.8]} 3... cxd4 {[%clk 0:02:59.6]}
4. Nxd4 {[%clk 0:01:30.7]} 4... Nc6 {[%clk 0:03:00.3]} 5. Nc3 {[%clk 0:01:30.7]}
5... Qc7 {[%clk 0:03:00.6]} 6. Ncb5 {[%clk 0:01:29.8]} 6... Qb8 {[%clk
0:02:59.2]} 7. Bd3 {[%clk 0:01:29.7]} 7... a6 {[%clk 0:02:58.8]} 8. Nxc6 {[%clk
0:01:29.5]} 8... bxc6 {[%clk 0:02:58.7]} 9. Nc3 {[%clk 0:01:29.4]} 9... Nf6
{[%clk 0:02:58]} 10. O-O {[%clk 0:01:29.7]} 10... d5 {[%clk 0:02:58.4]} 11. Qe2
{[%clk 0:01:28.8]} 11... Bd6 {[%clk 0:02:50]} 12. f4 {[%clk 0:01:28]} 12... Bc5+
{[%clk 0:02:48.2]} 13. Kh1 {[%clk 0:01:26.1]} 13... O-O {[%clk 0:02:47.9]} 14.
e5 {[%clk 0:01:13.2]} 14... Nd7 {[%clk 0:02:46]} 15. Na4 {[%clk 0:01:13.6]}
15... Be7 {[%clk 0:02:44.2]} 16. b3 {[%clk 0:01:07.7]} 16... Nc5 {[%clk
0:02:43.3]} 17. Nxc5 {[%clk 0:01:05.8]} 17... Bxc5 {[%clk 0:02:44.2]} 18. Rf3
{[%clk 0:01:02.3]} 18... g6 {[%clk 0:02:43.1]} 19. Bb2 {[%clk 0:00:54.8]} 19...
Be7 {[%clk 0:02:42.7]} 20. g4 {[%clk 0:00:47.8]} 20... c5 {[%clk 0:02:42.6]} 21.
f5 {[%clk 0:00:39.6]} 21... c4 {[%clk 0:02:20.8]} 22. f6 {[%clk 0:00:24.1]}
22... cxd3 {[%clk 0:02:02.8]} 23. Qe3 {[%clk 0:00:20.2]} 23... Re8 {[%clk
0:01:54.3]} 24. fxe7 {[%clk 0:00:17.9]} 24... Rxe7 {[%clk 0:01:54.6]} 25. Qh6
{[%clk 0:00:13.7]} 25... Bb7 {[%clk 0:01:52.3]} 26. Rh3 {[%clk 0:00:12.2]} 26...
d4+ {[%clk 0:01:44.4]} 27. Kg1 {[%clk 0:00:12.1]} 27... Qxe5 {[%clk 0:01:44.9]}
28. Qxh7+ {[%clk 0:00:11.5]} 28... Kf8 {[%clk 0:01:45.6]} 29. Qh8+ {[%clk
0:00:11]} 29... Qxh8 {[%clk 0:01:45.8]} 30. Rxh8+ {[%clk 0:00:11.7]} 30... Kg7
{[%clk 0:01:45.6]} 31. Bxd4+ {[%clk 0:00:12.3]} 31... e5 {[%clk 0:01:45.6]} 32.
Rxa8 {[%clk 0:00:11.7]} 32... Bxa8 {[%clk 0:01:45.8]} 33. Bc5 {[%clk 0:00:11.7]}
33... Rc7 {[%clk 0:01:42.7]} 34. Bd6 {[%clk 0:00:11.9]} 34... Rxc2 {[%clk
0:01:42.6]} 35. Bxe5+ {[%clk 0:00:12.2]} 35... f6 {[%clk 0:01:43.2]} 36. Bd4
{[%clk 0:00:11]} 36... Rg2+ {[%clk 0:01:42]} 37. Kf1 {[%clk 0:00:10.9]} 37... d2
{[%clk 0:01:41.2]} 38. Be3 {[%clk 0:00:05.3]} 38... Rxh2 {[%clk 0:01:35]} 39.
Rd1 {[%clk 0:00:01.4]} 39... Rh1+ {[%clk 0:01:26.2]} 40. Bg1 {[%clk 0:00:01.2]}
40... Bf3 {[%clk 0:01:16.4]} 41. Rxd2 {[%clk 0:00:02.1]} 41... Bxg4 {[%clk
0:01:17]} 42. Rd7+ {[%clk 0:00:02]} 42... Bxd7 {[%clk 0:01:16.7]} 43. Kg2 {[%clk
0:00:02.9]} 43... Bc6+ {[%clk 0:01:16.4]} 44. Kf2 {[%clk 0:00:02.7]} 44... g5
{[%clk 0:01:16]} 0-1

[Event "Late-Titled-Tuesday-Blitz-April-02-2024"]
[Site "Chess.com"]
[Date "2024.04.02"]
[Round "4"]
[White "DrVelja"]
[Black "Bykov_Egor"]
[Result "1-0"]
[WhiteElo "3018"]
[BlackElo "2614"]
[TimeControl "180+1"]
[EndTime "14:36:48 PDT"]
[Termination "DrVelja won by resignation"]

1. e4 {[%clk 0:03:00.9]} 1... c5 {[%clk 0:02:55.5]} 2. Nf3 {[%clk 0:03:01.2]}
2... e6 {[%clk 0:02:54.2]} 3. d4 {[%clk 0:02:56.8]} 3... cxd4 {[%clk 0:02:55.1]}
4. Nxd4 {[%clk 0:02:57.6]} 4... Nf6 {[%clk 0:02:53.9]} 5. Nc3 {[%clk 0:02:57.4]}
5... Nc6 {[%clk 0:02:53.6]} 6. a3 {[%clk 0:02:55.8]} 6... d5 {[%clk 0:02:52.9]}
7. exd5 {[%clk 0:02:50]} 7... Nxd5 {[%clk 0:02:51.9]} 8. Nxc6 {[%clk 0:02:49.4]}
8... bxc6 {[%clk 0:02:51.5]} 9. Qf3 {[%clk 0:02:40.5]} 9... Be7 {[%clk
0:02:37.2]} 10. Bd3 {[%clk 0:02:36]} 10... O-O {[%clk 0:02:32.5]} 11. Bd2 {[%clk
0:02:31.5]} 11... Rb8 {[%clk 0:02:16.6]} 12. Nxd5 {[%clk 0:01:50.5]} 12... exd5
{[%clk 0:02:15.5]} 13. Bc3 {[%clk 0:01:33.9]} 13... Bf6 {[%clk 0:02:14.1]} 14.
Bxf6 {[%clk 0:01:31.9]} 14... Re8+ {[%clk 0:02:06.7]} 15. Kd2 {[%clk 0:01:31.2]}
15... Qxf6 {[%clk 0:02:00.1]} 16. Qxf6 {[%clk 0:01:31.1]} 16... gxf6 {[%clk
0:02:01]} 17. Rhe1 {[%clk 0:01:26.7]} 17... Bd7 {[%clk 0:01:42]} 18. b4 {[%clk
0:01:26.1]} 18... Re5 {[%clk 0:01:37.9]} 19. f4 {[%clk 0:01:25]} 19... Ree8
{[%clk 0:01:30.5]} 20. Kc3 {[%clk 0:01:22.6]} 20... Kg7 {[%clk 0:01:05.5]} 21.
Kd4 {[%clk 0:01:20.6]} 21... f5 {[%clk 0:01:05.8]} 22. Kc5 {[%clk 0:01:12.9]}
22... Kf6 {[%clk 0:01:05.3]} 23. Rxe8 {[%clk 0:01:13.4]} 23... Rxe8 {[%clk
0:01:05]} 24. Kd6 {[%clk 0:01:14]} 24... Be6 {[%clk 0:00:49.5]} 25. Kxc6 {[%clk
0:01:12.5]} 25... h5 {[%clk 0:00:31.6]} 26. a4 {[%clk 0:01:04.7]} 26... h4
{[%clk 0:00:29.5]} 27. b5 {[%clk 0:01:05.2]} 27... Rg8 {[%clk 0:00:29.4]} 28. a5
{[%clk 0:01:04.8]} 28... Rxg2 {[%clk 0:00:20.6]} 29. b6 {[%clk 0:00:58.7]} 29...
axb6 {[%clk 0:00:21]} 30. axb6 {[%clk 0:00:59.6]} 30... Bc8 {[%clk 0:00:05.9]}
31. Ra8 {[%clk 0:00:56.2]} 31... Rg8 {[%clk 0:00:06.4]} 32. Kc7 {[%clk
0:00:55.8]} 1-0

[Event "Late-Titled-Tuesday-Blitz-April-02-2024"]
[Site "Chess.com"]
[Date "2024.04.02"]
[Round "4"]
[White "Mysterio47"]
[Black "1g60-1"]
[Result "1-0"]
[WhiteElo "2757"]
[BlackElo "2400"]
[TimeControl "180+1"]
[EndTime "14:36:48 PDT"]
[Termination "Mysterio47 won on time"]

1. e4 {[%clk 0:03:00.9]} 1... e6 {[%clk 0:03:00.4]} 2. d4 {[%clk 0:02:59.7]}
2... d5 {[%clk 0:03:00.5]} 3. Nc3 {[%clk 0:03:00.4]} 3... Bb4 {[%clk 0:03:00.1]}
4. exd5 {[%clk 0:03:00.8]} 4... exd5 {[%clk 0:02:59.4]} 5. Bd3 {[%clk
0:03:01.5]} 5... Ne7 {[%clk 0:02:59.4]} 6. Nf3 {[%clk 0:03:00.6]} 6... Nbc6
{[%clk 0:02:59.7]} 7. O-O {[%clk 0:02:59.8]} 7... Bg4 {[%clk 0:02:59]} 8. Be3
{[%clk 0:02:56.9]} 8... Nf5 {[%clk 0:02:43]} 9. h3 {[%clk 0:02:50.7]} 9... Nxe3
{[%clk 0:02:39.7]} 10. fxe3 {[%clk 0:02:51.6]} 10... Bh5 {[%clk 0:02:36.7]} 11.
Ne2 {[%clk 0:02:51.6]} 11... Qe7 {[%clk 0:02:28]} 12. Qc1 {[%clk 0:02:44.7]}
12... Bd6 {[%clk 0:02:19.6]} 13. Nf4 {[%clk 0:02:41.7]} 13... Bxf4 {[%clk
0:02:13.7]} 14. exf4 {[%clk 0:02:42.6]} 14... Bxf3 {[%clk 0:02:13.6]} 15. Rxf3
{[%clk 0:02:40.8]} 15... O-O-O {[%clk 0:01:59]} 16. c3 {[%clk 0:02:37.5]} 16...
Kb8 {[%clk 0:01:48.8]} 17. f5 {[%clk 0:02:36.5]} 17... Qf6 {[%clk 0:01:45.4]}
18. Qd2 {[%clk 0:02:35.6]} 18... h5 {[%clk 0:01:43.6]} 19. Re1 {[%clk
0:02:35.6]} 19... Rde8 {[%clk 0:01:42.2]} 20. Rfe3 {[%clk 0:02:35.3]} 20... Rxe3
{[%clk 0:01:42.1]} 21. Qxe3 {[%clk 0:02:36.2]} 21... a6 {[%clk 0:01:42.1]} 22.
b4 {[%clk 0:02:29.5]} 22... g5 {[%clk 0:01:19.8]} 23. fxg6 {[%clk 0:02:17]}
23... fxg6 {[%clk 0:01:19.1]} 24. Rf1 {[%clk 0:02:17.2]} 24... Qg7 {[%clk
0:01:13.2]} 25. Qe6 {[%clk 0:02:13.4]} 25... Nxd4 {[%clk 0:01:04.3]} 26. Qxd5
{[%clk 0:02:00.5]} 26... Nc6 {[%clk 0:01:01.6]} 27. Qc5 {[%clk 0:01:49.1]} 27...
Ne5 {[%clk 0:00:41.2]} 28. Be4 {[%clk 0:01:47.5]} 28... Rd8 {[%clk 0:00:33.5]}
29. b5 {[%clk 0:01:41.4]} 29... axb5 {[%clk 0:00:29]} 30. Qxb5 {[%clk
0:01:40.4]} 30... c6 {[%clk 0:00:29.6]} 31. Qc5 {[%clk 0:01:35.2]} 31... Qc7
{[%clk 0:00:15.4]} 32. Rb1 {[%clk 0:01:32.4]} 32... Qd6 {[%clk 0:00:12.6]} 33.
Qb6 {[%clk 0:01:25.4]} 33... Rd7 {[%clk 0:00:11.6]} 34. Rf1 {[%clk 0:01:16.4]}
34... g5 {[%clk 0:00:02.9]} 35. Qf2 {[%clk 0:01:11.3]} 35... Rd8 {[%clk
0:00:03.2]} 36. a4 {[%clk 0:01:04.6]} 36... g4 {[%clk 0:00:03.3]} 37. h4 {[%clk
0:01:05]} 37... Rg8 {[%clk 0:00:02]} 38. Qg3 {[%clk 0:01:00.9]} 1-0

[Event "Late-Titled-Tuesday-Blitz-April-02-2024"]
[Site "Chess.com"]
[Date "2024.04.02"]
[Round "4"]
[White "GlavkonVVS"]
[Black "MusicCityMaster"]
[Result "1-0"]
[WhiteElo "2614"]
[BlackElo "2432"]
[TimeControl "180+1"]
[EndTime "14:36:49 PDT"]
[Termination "GlavkonVVS won by resignation"]

1. c4 {[%clk 0:03:00.9]} 1... e5 {[%clk 0:02:59.8]} 2. Nc3 {[%clk 0:03:00.4]}
2... Nc6 {[%clk 0:02:58.7]} 3. g3 {[%clk 0:03:00.9]} 3... f5 {[%clk 0:02:59.2]}
4. Bg2 {[%clk 0:03:01.4]} 4... Nf6 {[%clk 0:02:59.9]} 5. d3 {[%clk 0:03:01.8]}
5... Bb4 {[%clk 0:02:58.5]} 6. Bd2 {[%clk 0:02:52.9]} 6... O-O {[%clk
0:02:58.1]} 7. a3 {[%clk 0:02:51.9]} 7... Bxc3 {[%clk 0:02:57.9]} 8. Bxc3 {[%clk
0:02:52.5]} 8... d6 {[%clk 0:02:58.8]} 9. Nf3 {[%clk 0:02:52.6]} 9... f4 {[%clk
0:02:52.4]} 10. gxf4 {[%clk 0:02:46.3]} 10... exf4 {[%clk 0:02:49.9]} 11. Rg1
{[%clk 0:02:39]} 11... Bf5 {[%clk 0:02:34.6]} 12. Qd2 {[%clk 0:02:38]} 12... Nh5
{[%clk 0:02:27.8]} 13. Nd4 {[%clk 0:02:25.7]} 13... Nxd4 {[%clk 0:02:22.9]} 14.
Bxd4 {[%clk 0:02:25.2]} 14... c6 {[%clk 0:02:12.6]} 15. Bf3 {[%clk 0:02:23.4]}
15... Nf6 {[%clk 0:02:01.9]} 16. Qxf4 {[%clk 0:02:19.2]} 16... Bg6 {[%clk
0:02:02.2]} 17. Qh4 {[%clk 0:02:15.9]} 17... Qe7 {[%clk 0:01:49.5]} 18. O-O-O
{[%clk 0:02:13.3]} 18... Rac8 {[%clk 0:01:44.2]} 19. Qg5 {[%clk 0:02:09.6]}
19... b5 {[%clk 0:01:42.7]} 20. c5 {[%clk 0:02:04.1]} 20... a5 {[%clk
0:01:29.8]} 21. h4 {[%clk 0:02:00.2]} 21... Qf7 {[%clk 0:00:52.2]} 22. h5 {[%clk
0:01:46]} 22... dxc5 {[%clk 0:00:43.5]} 23. hxg6 {[%clk 0:01:42.5]} 23... hxg6
{[%clk 0:00:43.2]} 24. Bxf6 {[%clk 0:01:36.8]} 24... Qxf6 {[%clk 0:00:43.4]} 25.
Qxg6 {[%clk 0:01:36.2]} 25... b4 {[%clk 0:00:39.8]} 26. Qxf6 {[%clk 0:01:35.6]}
26... Rxf6 {[%clk 0:00:39.5]} 27. a4 {[%clk 0:01:33.7]} 27... b3 {[%clk
0:00:39.3]} 28. Rg5 {[%clk 0:01:32.4]} 28... Rf4 {[%clk 0:00:39]} 29. Rxc5
{[%clk 0:01:29.2]} 29... Rxa4 {[%clk 0:00:39.7]} 30. Kd2 {[%clk 0:01:28.6]}
30... Ra2 {[%clk 0:00:38]} 31. Rb1 {[%clk 0:01:24.5]} 31... a4 {[%clk
0:00:37.3]} 32. Kc3 {[%clk 0:01:23.1]} 32... Rb8 {[%clk 0:00:36]} 33. Bxc6
{[%clk 0:01:20.5]} 33... Kf8 {[%clk 0:00:29.3]} 34. Bd5 {[%clk 0:01:16.2]} 34...
Ke7 {[%clk 0:00:28.7]} 35. Bc4 {[%clk 0:01:13.8]} 35... Kd6 {[%clk 0:00:28]} 36.
Rd5+ {[%clk 0:01:12.2]} 36... Kc6 {[%clk 0:00:28.4]} 37. Rg1 {[%clk 0:01:11.1]}
37... a3 {[%clk 0:00:23.2]} 38. Rg6+ {[%clk 0:01:10.7]} 38... Kc7 {[%clk
0:00:22.4]} 39. Rxg7+ {[%clk 0:01:10.7]} 39... Kc6 {[%clk 0:00:22.9]} 40. Rg6+
{[%clk 0:01:10.5]} 40... Kc7 {[%clk 0:00:23.4]} 41. Rh5 {[%clk 0:01:09.5]} 41...
Rf8 {[%clk 0:00:12]} 42. Rh7+ {[%clk 0:01:09.1]} 42... Kb8 {[%clk 0:00:11.8]}
43. Rb6+ {[%clk 0:01:08.6]} 43... Kc8 {[%clk 0:00:11.4]} 44. Rxb3 {[%clk
0:01:04.5]} 44... axb2 {[%clk 0:00:10.7]} 45. Rxb2 {[%clk 0:01:02.3]} 1-0

[Event "Late-Titled-Tuesday-Blitz-April-02-2024"]
[Site "Chess.com"]
[Date "2024.04.02"]
[Round "4"]
[White "Stalri"]
[Black "ChessSwole"]
[Result "0-1"]
[WhiteElo "2555"]
[BlackElo "2701"]
[TimeControl "180+1"]
[EndTime "14:36:51 PDT"]
[Termination "ChessSwole won by checkmate"]

1. Nf3 {[%clk 0:03:00.9]} 1... d5 {[%clk 0:02:58.5]} 2. g3 {[%clk 0:03:01.3]}
2... Bg4 {[%clk 0:02:58]} 3. Bg2 {[%clk 0:03:01.3]} 3... Nd7 {[%clk 0:02:58]} 4.
d4 {[%clk 0:02:56.9]} 4... e6 {[%clk 0:02:57.8]} 5. O-O {[%clk 0:02:57.3]} 5...
Ngf6 {[%clk 0:02:57.4]} 6. c4 {[%clk 0:02:57.5]} 6... c6 {[%clk 0:02:57.7]} 7.
cxd5 {[%clk 0:02:56.5]} 7... exd5 {[%clk 0:02:57.3]} 8. h3 {[%clk 0:02:56.5]}
8... Bxf3 {[%clk 0:02:57.1]} 9. Bxf3 {[%clk 0:02:53.6]} 9... Bd6 {[%clk
0:02:57.6]} 10. Nc3 {[%clk 0:02:53.1]} 10... O-O {[%clk 0:02:57.5]} 11. Rb1
{[%clk 0:02:51.9]} 11... a5 {[%clk 0:02:48.5]} 12. Qd3 {[%clk 0:02:48.2]} 12...
Re8 {[%clk 0:02:47.4]} 13. a3 {[%clk 0:02:47.8]} 13... h6 {[%clk 0:02:37.7]} 14.
Kg2 {[%clk 0:02:42.9]} 14... Qe7 {[%clk 0:02:36]} 15. e3 {[%clk 0:02:42]} 15...
Ne4 {[%clk 0:02:26.4]} 16. Bxe4 {[%clk 0:02:34.8]} 16... dxe4 {[%clk 0:02:27.3]}
17. Qc2 {[%clk 0:02:33.9]} 17... h5 {[%clk 0:02:23.2]} 18. h4 {[%clk 0:02:30.8]}
18... Nf6 {[%clk 0:02:22.4]} 19. Bd2 {[%clk 0:02:28.7]} 19... Qe6 {[%clk
0:02:11.8]} 20. b4 {[%clk 0:02:26.7]} 20... axb4 {[%clk 0:02:10.9]} 21. axb4
{[%clk 0:02:27.6]} 21... b5 {[%clk 0:02:02.6]} 22. Ra1 {[%clk 0:02:25.2]} 22...
Qc4 {[%clk 0:01:44.2]} 23. Rxa8 {[%clk 0:02:08.1]} 23... Rxa8 {[%clk 0:01:45.1]}
24. Rc1 {[%clk 0:02:08.1]} 24... Bxb4 {[%clk 0:01:25.9]} 25. Nxe4 {[%clk
0:02:07.9]} 25... Qd5 {[%clk 0:01:25.3]} 26. f3 {[%clk 0:02:05.4]} 26... Ra2
{[%clk 0:01:17]} 27. Nxf6+ {[%clk 0:01:05.3]} 27... gxf6 {[%clk 0:01:17.9]} 28.
Qxc6 {[%clk 0:01:05.5]} 28... Rxd2+ {[%clk 0:01:16]} 29. Kh3 {[%clk 0:00:55.5]}
29... Qf5+ {[%clk 0:01:05.3]} 30. g4 {[%clk 0:00:55.3]} 30... hxg4+ {[%clk
0:01:03.9]} 31. fxg4 {[%clk 0:00:37.7]} 31... Qf2 {[%clk 0:01:02.4]} 32. g5
{[%clk 0:00:36.1]} 32... f5 {[%clk 0:00:46.1]} 33. Qe8+ {[%clk 0:00:20.6]} 33...
Bf8 {[%clk 0:00:46]} 34. Qe5 {[%clk 0:00:02.2]} 34... Qg2# {[%clk 0:00:44.7]}
0-1

[Event "Late-Titled-Tuesday-Blitz-April-02-2024"]
[Site "Chess.com"]
[Date "2024.04.02"]
[Round "4"]
[White "Mikhail_Golubev"]
[Black "rasmussvane"]
[Result "1-0"]
[WhiteElo "2617"]
[BlackElo "2888"]
[TimeControl "180+1"]
[EndTime "14:36:55 PDT"]
[Termination "Mikhail_Golubev won by resignation"]

1. e4 {[%clk 0:03:00.9]} 1... c5 {[%clk 0:02:57.9]} 2. Nf3 {[%clk 0:03:00.2]}
2... a6 {[%clk 0:02:58.2]} 3. Nc3 {[%clk 0:02:58]} 3... b5 {[%clk 0:02:50.3]} 4.
d4 {[%clk 0:02:57.9]} 4... cxd4 {[%clk 0:02:50.3]} 5. Nxd4 {[%clk 0:02:57.9]}
5... Bb7 {[%clk 0:02:50.6]} 6. Bd3 {[%clk 0:02:55.9]} 6... e6 {[%clk 0:02:48.2]}
7. O-O {[%clk 0:02:54.6]} 7... Nc6 {[%clk 0:02:42.3]} 8. Nxc6 {[%clk 0:02:54]}
8... Bxc6 {[%clk 0:02:43.2]} 9. Re1 {[%clk 0:02:48]} 9... Qc7 {[%clk 0:02:33.6]}
10. a4 {[%clk 0:01:58.4]} 10... b4 {[%clk 0:02:32.7]} 11. Nd5 {[%clk 0:01:58.4]}
11... Bxd5 {[%clk 0:02:21.4]} 12. exd5 {[%clk 0:01:57.9]} 12... Bd6 {[%clk
0:02:22.1]} 13. Qg4 {[%clk 0:01:42.6]} 13... Kf8 {[%clk 0:02:00.4]} 14. dxe6
{[%clk 0:01:32.6]} 14... dxe6 {[%clk 0:02:01.3]} 15. Qf3 {[%clk 0:01:32.6]}
15... Re8 {[%clk 0:01:38.9]} 16. Bxa6 {[%clk 0:01:31.6]} 16... Nf6 {[%clk
0:01:23.4]} 17. Bb5 {[%clk 0:01:30.1]} 17... Rb8 {[%clk 0:01:22.9]} 18. Bg5
{[%clk 0:01:25.9]} 18... Bxh2+ {[%clk 0:01:17.8]} 19. Kh1 {[%clk 0:01:24]} 19...
Be5 {[%clk 0:01:18.5]} 20. Rad1 {[%clk 0:01:15.9]} 20... Nd5 {[%clk 0:01:03.1]}
21. Rxd5 {[%clk 0:01:07.6]} 21... exd5 {[%clk 0:01:02]} 22. Qxd5 {[%clk
0:01:07.6]} 22... Bf6 {[%clk 0:00:47.8]} 23. Qe4 {[%clk 0:00:40.4]} 23... Qd8
{[%clk 0:00:24.1]} 24. Bf4 {[%clk 0:00:39.2]} 24... Rc8 {[%clk 0:00:24.4]} 25.
Bc7 {[%clk 0:00:29.4]} 25... Qe7 {[%clk 0:00:09.9]} 26. Bd6 {[%clk 0:00:28.8]}
26... Re8 {[%clk 0:00:02.3]} 27. Bxe7+ {[%clk 0:00:27.2]} 27... Rxe7 {[%clk
0:00:03.2]} 28. Qa8+ {[%clk 0:00:27.2]} 1-0

[Event "Late-Titled-Tuesday-Blitz-April-02-2024"]
[Site "Chess.com"]
[Date "2024.04.02"]
[Round "4"]
[White "FREZZY23"]
[Black "ChessBrainiacOnTwitch"]
[Result "1-0"]
[WhiteElo "2422"]
[BlackElo "2815"]
[TimeControl "180+1"]
[EndTime "14:36:55 PDT"]
[Termination "FREZZY23 won by checkmate"]

1. Nf3 {[%clk 0:02:59.6]} 1... Nf6 {[%clk 0:02:55.4]} 2. g3 {[%clk 0:02:57.9]}
2... g6 {[%clk 0:02:56.3]} 3. Bg2 {[%clk 0:02:58.1]} 3... Bg7 {[%clk 0:02:57.2]}
4. O-O {[%clk 0:02:58.8]} 4... O-O {[%clk 0:02:58.1]} 5. d4 {[%clk 0:02:59]}
5... d6 {[%clk 0:02:59]} 6. c4 {[%clk 0:02:58.6]} 6... Nbd7 {[%clk 0:02:59.9]}
7. Nc3 {[%clk 0:02:58.7]} 7... e5 {[%clk 0:03:00.6]} 8. h3 {[%clk 0:02:57.7]}
8... Re8 {[%clk 0:03:00]} 9. e4 {[%clk 0:02:57.8]} 9... c6 {[%clk 0:02:58.5]}
10. Be3 {[%clk 0:02:57.7]} 10... a5 {[%clk 0:02:52.3]} 11. Qc2 {[%clk
0:02:56.2]} 11... exd4 {[%clk 0:02:44.6]} 12. Nxd4 {[%clk 0:02:54.9]} 12... Nc5
{[%clk 0:02:37.4]} 13. Rfd1 {[%clk 0:02:42.7]} 13... Qe7 {[%clk 0:02:33.3]} 14.
Re1 {[%clk 0:01:56.9]} 14... Nfxe4 {[%clk 0:01:35.2]} 15. Nxe4 {[%clk 0:01:52]}
15... Nxe4 {[%clk 0:01:36.1]} 16. Bf4 {[%clk 0:01:51.9]} 16... d5 {[%clk
0:01:32.4]} 17. cxd5 {[%clk 0:01:48.4]} 17... cxd5 {[%clk 0:01:33.3]} 18. Nb5
{[%clk 0:01:48.2]} 18... Bf5 {[%clk 0:01:15]} 19. Nc7 {[%clk 0:01:30.1]} 19...
Rac8 {[%clk 0:01:06.2]} 20. Qa4 {[%clk 0:01:28.8]} 20... Red8 {[%clk 0:01:01.9]}
21. Rad1 {[%clk 0:01:24.2]} 21... Rxc7 {[%clk 0:00:56.1]} 22. Bxc7 {[%clk
0:01:20.1]} 22... Qxc7 {[%clk 0:00:57]} 23. Rc1 {[%clk 0:01:04.3]} 23... Qb6
{[%clk 0:00:55.9]} 24. Re2 {[%clk 0:01:02.2]} 24... Bd4 {[%clk 0:00:50]} 25.
Rcc2 {[%clk 0:00:57.4]} 25... Nxg3 {[%clk 0:00:48.1]} 26. Re8+ {[%clk
0:00:55.9]} 26... Rxe8 {[%clk 0:00:43.9]} 27. Qxe8+ {[%clk 0:00:56.8]} 27... Kg7
{[%clk 0:00:44.6]} 28. Bxd5 {[%clk 0:00:56.9]} 28... Bxc2 {[%clk 0:00:31]} 29.
Qxf7+ {[%clk 0:00:56.7]} 29... Kh6 {[%clk 0:00:31.7]} 30. Qf8+ {[%clk
0:00:54.3]} 30... Kg5 {[%clk 0:00:20.6]} 31. h4+ {[%clk 0:00:47.7]} 31... Kg4
{[%clk 0:00:04.6]} 32. Bf3+ {[%clk 0:00:46.3]} 32... Kh3 {[%clk 0:00:03.1]} 33.
Bg2+ {[%clk 0:00:45.2]} 33... Kxh4 {[%clk 0:00:02.7]} 34. Qf4+ {[%clk
0:00:43.7]} 34... Kh5 {[%clk 0:00:03.1]} 35. Bf3# {[%clk 0:00:43.1]} 1-0

[Event "Late-Titled-Tuesday-Blitz-April-02-2024"]
[Site "Chess.com"]
[Date "2024.04.02"]
[Round "4"]
[White "TedBelanoff"]
[Black "maurovargas01"]
[Result "0-1"]
[WhiteElo "2220"]
[BlackElo "1877"]
[TimeControl "180+1"]
[EndTime "14:36:55 PDT"]
[Termination "maurovargas01 won by checkmate"]

1. b4 {[%clk 0:02:59.1]} 1... e5 {[%clk 0:02:59.5]} 2. Bb2 {[%clk 0:02:57.2]}
2... d6 {[%clk 0:02:59.1]} 3. d4 {[%clk 0:02:55.7]} 3... e4 {[%clk 0:02:58]} 4.
c4 {[%clk 0:02:51.8]} 4... f5 {[%clk 0:02:57]} 5. e3 {[%clk 0:02:50.7]} 5... Nf6
{[%clk 0:02:56.9]} 6. a3 {[%clk 0:02:50.7]} 6... g6 {[%clk 0:02:55.4]} 7. Ne2
{[%clk 0:02:50.6]} 7... Bg7 {[%clk 0:02:55.3]} 8. g3 {[%clk 0:02:51.2]} 8... O-O
{[%clk 0:02:54.8]} 9. Bg2 {[%clk 0:02:51.5]} 9... Qe8 {[%clk 0:02:53.1]} 10. O-O
{[%clk 0:02:51.4]} 10... g5 {[%clk 0:02:51.6]} 11. Nd2 {[%clk 0:02:49.7]} 11...
Qh5 {[%clk 0:02:50.6]} 12. Nc3 {[%clk 0:02:46.1]} 12... g4 {[%clk 0:02:45.1]}
13. Ne2 {[%clk 0:02:40.8]} 13... Nc6 {[%clk 0:02:36.5]} 14. Nf4 {[%clk
0:02:40.6]} 14... Qh6 {[%clk 0:02:35.6]} 15. d5 {[%clk 0:02:32.1]} 15... Ne7
{[%clk 0:02:33.1]} 16. Nb3 {[%clk 0:02:31.5]} 16... Ng6 {[%clk 0:02:32.4]} 17.
Nd4 {[%clk 0:02:21.1]} 17... Ne5 {[%clk 0:02:28.9]} 18. Nde6 {[%clk 0:02:18.1]}
18... Nf3+ {[%clk 0:02:24.4]} 19. Bxf3 {[%clk 0:02:11.3]} 19... gxf3 {[%clk
0:02:21.8]} 20. Nxf8 {[%clk 0:01:56.1]} 20... Bxf8 {[%clk 0:02:21.1]} 21. Bxf6
{[%clk 0:01:48.6]} 21... Qxf6 {[%clk 0:02:20.4]} 22. Qd4 {[%clk 0:01:31.6]}
22... Qh6 {[%clk 0:02:15.9]} 23. Rac1 {[%clk 0:01:27.6]} 23... Bg7 {[%clk
0:02:15.3]} 24. Qd1 {[%clk 0:01:22.9]} 24... Be5 {[%clk 0:02:15.2]} 25. h4
{[%clk 0:01:19.6]} 25... Bd7 {[%clk 0:02:05.8]} 26. Kh2 {[%clk 0:01:17.7]} 26...
Kh8 {[%clk 0:02:02.4]} 27. Rh1 {[%clk 0:01:17.6]} 27... Rg8 {[%clk 0:01:58.3]}
28. Qd2 {[%clk 0:01:14]} 28... Rg4 {[%clk 0:01:50]} 29. Kg1 {[%clk 0:01:12.8]}
29... Qg7 {[%clk 0:01:34]} 30. Kf1 {[%clk 0:01:11.9]} 30... Ba4 {[%clk
0:01:15.1]} 31. c5 {[%clk 0:01:08.5]} 31... Bb5+ {[%clk 0:01:13]} 32. Ke1 {[%clk
0:01:07.7]} 32... Bxf4 {[%clk 0:01:10.3]} 33. exf4 {[%clk 0:01:03.4]} 33... Kg8
{[%clk 0:01:00]} 34. cxd6 {[%clk 0:00:57.3]} 34... cxd6 {[%clk 0:00:58.5]} 35.
Rc8+ {[%clk 0:00:55.3]} 35... Be8 {[%clk 0:00:43.8]} 36. Rxe8+ {[%clk
0:00:55.3]} 36... Kf7 {[%clk 0:00:43.6]} 37. Rc8 {[%clk 0:00:55.9]} 37... Qa1+
{[%clk 0:00:40.4]} 38. Rc1 {[%clk 0:00:55.6]} 38... Qxa3 {[%clk 0:00:39.7]} 39.
Qc3 {[%clk 0:00:53.9]} 39... Qa2 {[%clk 0:00:31.7]} 40. Qc7+ {[%clk 0:00:53.1]}
40... Kg6 {[%clk 0:00:24.1]} 41. Qxd6+ {[%clk 0:00:52.8]} 41... Kh5 {[%clk
0:00:21.5]} 42. Qe5 {[%clk 0:00:47.7]} 42... Qe2# {[%clk 0:00:20.1]} 0-1